bitfinex/quotes_SOLUSD_20250712
["timestamp","ask_amount","ask_price","bid_price","bid_amount"]
[1752304973896,88.2012667,163.17,163.16,0.06]
[1752304975307,97.12560158,163.17,163.15,0.2]
[1752304975510,9.61433488,163.16,163.15,0.2]
[1752304977202,35.32335373,163.16,163.14,0.2]
[1752304977400,50.40866976,163.15,163.14,0.2]
[1752304977587,51.09866976,163.15,163.14,0.2]
[1752304979006,67.88335373,163.15,163.14,0.2]
[1752304981602,68.19272145,163.15,163.14,0.2]
[1752304981910,67.88335373,163.15,163.14,0.2]
[1752304982127,68.19272145,163.15,163.14,0.2]
[1752304982326,58.95901885,163.15,163.14,0.2]
[1752304982694,67.88335373,163.15,163.14,0.2]
[1752304984900,68.19272145,163.15,163.14,0.2]
[1752304985203,67.88335373,163.15,163.14,0.2]
[1752304985601,68.19272145,163.15,163.14,0.2]
[1752304985806,67.88335373,163.15,163.14,0.2]
[1752304987026,68.19272145,163.15,163.14,0.2]
[1752304987222,67.88335373,163.15,163.14,0.2]
[1752304990439,58.95901885,163.15,163.14,0.2]
[1752304990742,41.48433488,163.15,163.14,0.2]
[1752304991609,41.48433488,163.15,163.14,0.91]
[1752304992231,67.48433488,163.15,163.14,0.91]
[1752304993828,67.51433488,163.15,163.14,0.91]
[1752304994839,67.51433488,163.15,163.14,0.2]
[1752304995733,68.20433488,163.15,163.14,0.2]
[1752304996102,67.51433488,163.15,163.14,0.2]
[1752304999320,71.62813135,163.15,163.14,0.2]
[1752304999823,67.51433488,163.15,163.14,0.2]
[1752305000615,67.51433488,163.15,163.14,0.86]
[1752305001321,58.59,163.15,163.14,0.86]
[1752305001541,67.51433488,163.15,163.14,0.86]
[1752305004814,0.03,163.15,163.14,0.86]
[1752305005015,8.95433488,163.15,163.14,0.86]
[1752305006748,0.03,163.15,163.14,0.86]
[1752305007046,8.95433488,163.15,163.14,0.86]
[1752305008835,0.03,163.15,163.14,0.86]
[1752305010447,8.95433488,163.15,163.14,0.86]
[1752305019655,8.95433488,163.15,163.14,0.2]
[1752305020742,8.95433488,163.15,163.14,0.86]
[1752305023845,0.03,163.15,163.14,0.86]
[1752305030863,8.95433488,163.15,163.14,0.86]
[1752305033363,8.95433488,163.15,163.14,0.2]
[1752305033665,8.95433488,163.15,163.14,0.86]
[1752305033876,8.95433488,163.15,163.14,0.2]
[1752305036868,0.03,163.15,163.14,0.2]
[1752305037045,8.95433488,163.15,163.14,0.2]
[1752305037250,9.66433488,163.15,163.14,0.2]
[1752305037865,8.95433488,163.15,163.14,0.2]
[1752305042276,0.03,163.15,163.14,0.2]
[1752305042575,8.95433488,163.15,163.14,0.2]
[1752305045172,0.03,163.15,163.14,0.86]
[1752305047984,0.03,163.15,163.14,0.2]
[1752305048364,8.95433488,163.15,163.14,0.2]
[1752305048780,8.95433488,163.15,163.14,0.86]
[1752305050376,0.03,163.15,163.14,0.86]
[1752305052976,0.03,163.15,163.14,9.78433488]
[1752305054664,0.03,163.15,163.14,0.86]
[1752305054868,0.03,163.15,163.14,9.78433488]
[1752305055064,0.03,163.15,163.14,0.86]
[1752305056389,0.03,163.15,163.14,0.2]
[1752305056390,8.95433488,163.15,163.14,0.2]
[1752305057389,0.75,163.15,163.14,0.2]
[1752305057598,9.67433488,163.15,163.14,0.2]
[1752305058084,8.95433488,163.15,163.14,0.2]
[1752305058275,0.03,163.15,163.14,0.2]
[1752305063201,0.03,163.15,163.14,0.85]
[1752305063404,0.03,163.15,163.14,26.55901885]
[1752305063991,0.03,163.15,163.14,17.63468397]
[1752305064294,0.03,163.15,163.14,26.55901885]
[1752305067198,0.03,163.15,163.14,58.79901885]
[1752305068601,0.03,163.15,163.14,26.55901885]
[1752305068800,0.03,163.15,163.14,58.79901885]
[1752305073218,0.03,163.15,163.14,17.63468397]
[1752305073413,0.03,163.15,163.14,58.77901885]
[1752305079214,0.03,163.15,163.14,155.62141885]
[1752305079799,0.03,163.15,163.14,160.52748006]
[1752305080501,0.03,163.15,163.14,168.87949419]
[1752305082417,0.03,163.15,163.14,187.23949419]
[1752305086622,0.03,163.15,163.14,181.10919419]
[1752305087329,0.03,163.15,163.14,148.88919419]
[1752305087523,0.03,163.15,163.14,181.04919419]
[1752305087828,0.03,163.15,163.14,130.52919419]
[1752305088032,0.03,163.15,163.14,162.68919419]
[1752305090628,0.03,163.15,163.14,130.52919419]
[1752305090835,0.03,163.15,163.14,162.66919419]
[1752305097041,0.03,163.15,163.14,157.76313298]
[1752305097424,0.03,163.15,163.14,176.12313298]
[1752305097931,0.03,163.15,163.14,124.01103298]
[1752305098141,0.03,163.15,163.14,156.13103298]
[1752305102229,0.03,163.15,163.14,150.9550116]
[1752305103155,0.03,163.15,163.14,169.3150116]
[1752305104241,0.03,163.15,163.14,169.4950116]
[1752305105447,0.03,163.15,163.14,151.1350116]
[1752305105627,0.03,163.15,163.14,150.9550116]
[1752305107535,0.03,163.15,163.14,142.03067672]
[1752305107723,0.03,163.15,163.14,150.9550116]
[1752305108439,0.03,163.15,163.14,118.8350116]
[1752305108641,0.03,163.15,163.14,150.9150116]
[1752305111835,0.03,163.15,163.14,118.8350116]
[1752305112035,0.03,163.15,163.14,150.9150116]
[1752305115957,0.68,163.15,163.14,118.8350116]
[1752305116133,0.68,163.15,163.14,110.48299747]
[1752305116340,0.68,163.15,163.14,168.54299747]
[1752305117558,0.68,163.15,163.14,79.44299747]
[1752305122475,0.03,163.15,163.14,151.0750116]
[1752305122765,0.03,163.15,163.14,158.36243961]
[1752305123439,0.03,163.15,163.14,176.72243961]
[1752305123440,0.0001304,163.15,163.14,176.72243961]
[1752305125974,0.0001304,163.15,163.14,158.18243961]
[1752305126345,0.0001304,163.15,163.14,126.12243961]
[1752305126646,0.0001304,163.15,163.14,158.14243961]
[1752305127365,0.0001304,163.15,163.14,158.32243961]
[1752305133079,0.0001304,163.15,163.14,158.14243961]
[1752305133379,0.65,163.18,163.17,26.0]
[1752305133583,1.6543,163.21,163.18,16.78468397]
[1752305133876,1.6543,163.21,163.19,32.0]
[1752305134076,1.6543,163.21,163.2,8.92433488]
[1752305134582,0.03,163.25,163.24,26.0]
[1752305134756,0.03,163.25,163.24,83.68901885]
[1752305135265,0.68,163.25,163.24,83.68901885]
[1752305137479,0.03,163.25,163.24,83.68901885]
[1752305137891,0.03,163.25,163.24,92.61335373]
[1752305138475,0.03,163.25,163.24,86.75079058]
[1752305139598,0.68,163.25,163.24,45.8464557]
[1752305139894,0.68,163.25,163.24,83.66901885]
[1752305142301,0.03,163.25,163.24,83.66901885]
[1752305143476,0.03,163.25,163.24,86.65497994]
[1752305143795,0.68,163.25,163.24,86.65497994]
[1752305144370,0.03,163.25,163.24,86.65497994]
[1752305146003,0.03,163.25,163.24,95.75931482]
[1752305146885,0.03,163.25,163.24,184.85931482]
[1752305147105,0.03,163.25,163.24,211.57132895]
[1752305147298,0.03,163.25,163.24,218.85875696]
[1752305151014,0.03,163.25,163.24,218.67875696]
[1752305151304,0.75,163.25,163.24,123.16103298]
[1752305151482,0.75,163.25,163.24,146.72901885]
[1752305151890,0.75,163.25,163.24,172.72901885]
[1752305152987,0.75,163.25,163.24,57.62901885]
[1752305154704,0.75,163.25,163.24,83.62901885]
[1752305157316,0.75,163.25,163.24,74.70468397]
[1752305157620,0.03,163.25,163.24,83.62901885]
[1752305158821,0.75,163.25,163.24,172.72901885]
[1752305163317,0.03,163.25,163.24,172.72901885]
[1752305164901,0.75,163.25,163.24,163.80468397]
[1752305165101,0.75,163.25,163.24,172.72901885]
[1752305166023,0.03,163.25,163.24,172.72901885]
[1752305167019,0.03,163.25,163.24,146.72901885]
[1752305168201,0.75,163.25,163.24,146.72901885]
[1752305171416,0.03,163.25,163.24,146.72901885]
[1752305171915,0.75,163.25,163.24,146.72901885]
[1752305174110,0.03,163.25,163.24,146.72901885]
[1752305176535,0.75,163.25,163.24,146.72901885]
[1752305177828,0.75,163.25,163.24,114.80901885]
[1752305178019,0.75,163.25,163.18,18.36]
[1752305178020,9.67433488,163.25,163.16,8.954335]
[1752305178218,8.92433488,163.23,163.18,8.92433488]
[1752305178437,0.72,163.22,163.21,26.0]
[1752305178630,0.72,163.22,163.21,74.62468397]
[1752305178833,0.72,163.22,163.21,83.54901885]
[1752305180411,0.03,163.25,163.21,83.54901885]
[1752305180625,0.72,163.23,163.21,74.62468397]
[1752305180841,0.72,163.23,163.22,25.70901885]
[1752305181129,0.03,163.25,163.22,25.70901885]
[1752305181130,0.75,163.25,163.23,16.78468397]
[1752305181331,0.75,163.25,163.24,40.76433488]
[1752305185813,0.03,163.25,163.24,40.76433488]
[1752305186008,0.75,163.25,163.24,40.76433488]
[1752305186417,0.75,163.25,163.24,83.54901885]
[1752305186812,0.03,163.25,163.24,83.54901885]
[1752305188232,0.03,163.25,163.24,57.54901885]
[1752305188540,0.03,163.25,163.24,57.72901885]
[1752305188723,0.03,163.25,163.24,57.54901885]
[1752305191412,0.03,163.25,163.24,146.64901885]
[1752305192841,0.75,163.25,163.24,146.60901885]
[1752305196825,0.75,163.25,163.24,137.68468397]
[1752305197026,0.75,163.25,163.24,146.60901885]
[1752305197249,0.75,163.25,163.24,57.50901885]
[1752305198520,0.03,163.25,163.24,57.50901885]
[1752305203158,0.03,163.25,163.24,146.60901885]
[1752305203855,0.03,163.25,163.24,146.78901885]
[1752305204153,0.03,163.25,163.24,155.71335373]
[1752305210247,0.00040569,163.25,163.24,155.71335373]
[1752305210447,0.00040569,163.25,163.24,163.23047897]
[1752305211261,0.00040569,163.25,163.24,181.59047897]
[1752305218164,0.03,163.3,163.28,42.78468397]
[1752305218350,0.03,163.3,163.29,57.42901885]
[1752305218553,0.03,163.3,163.29,146.52901885]
[1752305218947,0.03,163.3,163.29,146.70901885]
[1752305220765,0.03,163.31,163.3,105.85468397]
[1752305220972,0.03,163.31,163.3,165.65138872]
[1752305221152,0.03,163.31,163.3,165.03901885]
[1752305222241,0.03,163.31,163.3,169.8810913]
[1752305224346,0.03,163.31,163.3,169.7010913]
[1752305224563,0.03,163.31,163.3,169.8810913]
[1752305224946,0.03,163.31,163.3,170.23819304]
[1752305225145,0.03,163.31,163.3,169.8810913]
[1752305225341,0.03,163.31,163.3,170.23819304]
[1752305225650,0.03,163.31,163.3,169.8810913]
[1752305225853,0.03,163.31,163.3,170.23819304]
[1752305226056,0.03,163.31,163.3,169.8810913]
[1752305226460,0.03,163.31,163.3,170.23819304]
[1752305226979,0.7,163.31,163.3,119.6210913]
[1752305227344,0.7,163.31,163.3,151.3210913]
[1752305227541,0.7,163.31,163.3,151.67819304]
[1752305228568,0.7,163.31,163.3,151.3210913]
[1752305228745,0.7,163.31,163.3,151.67819304]
[1752305229252,0.7,163.31,163.3,151.3210913]
[1752305229950,0.03,163.31,163.3,151.73819304]
[1752305230350,0.03,163.31,163.3,151.3810913]
[1752305230661,0.03,163.31,163.3,151.5610913]
[1752305230856,0.03,163.31,163.3,151.91819304]
[1752305231043,0.03,163.31,163.3,151.73819304]
[1752305231242,0.03,163.31,163.3,151.3810913]
[1752305231562,0.03,163.31,163.3,151.73819304]
[1752305231963,0.03,163.31,163.3,151.3810913]
[1752305232148,0.03,163.31,163.3,151.91819304]
[1752305232349,0.03,163.31,163.3,169.9210913]
[1752305236178,0.03,163.31,163.3,169.7410913]
[1752305237560,0.74,163.31,163.3,151.3410913]
[1752305248979,0.74,163.31,163.3,146.49901885]
[1752305250795,0.03,163.31,163.3,146.49901885]
[1752305251182,0.03,163.31,163.3,151.44611491]
[1752305251384,0.74,163.31,163.3,151.44611491]
[1752305252277,0.74,163.31,163.3,146.49901885]
[1752305265301,0.74,163.31,163.3,48.50468397]
[1752305275814,0.74,163.31,163.3,31.72]
[1752305276192,9.66433488,163.31,163.3,31.72]
[1752305279715,0.74,163.31,163.3,31.72]
[1752305280621,0.74,163.31,163.3,48.50468397]
[1752305280811,0.03,163.31,163.3,57.42901885]
[1752305281012,0.03,163.31,163.3,57.60901885]
[1752305281519,0.03,163.31,163.3,146.67901885]
[1752305290808,0.03,163.31,163.3,153.2150148]
[1752305291121,0.03,163.31,163.3,146.67901885]
[1752305291434,0.03,163.31,163.3,153.2150148]
[1752305292306,0.03,163.31,163.3,146.67901885]
[1752305293103,0.03,163.31,163.3,146.49901885]
[1752305293606,0.03,163.31,163.3,153.0350148]
[1752305294004,0.03,163.31,163.3,146.49901885]
[1752305295010,0.03,163.31,163.3,153.0350148]
[1752305295209,0.03,163.31,163.3,146.49901885]
[1752305295835,0.03,163.31,163.3,153.0350148]
[1752305296008,0.03,163.31,163.3,114.83901885]
[1752305296210,0.75,163.31,163.3,146.35901885]
[1752305297334,0.75,163.31,163.3,16.84468397]
[1752305297543,0.75,163.31,163.3,74.36468397]
[1752305299920,0.03,163.31,163.3,57.28901885]
[1752305300819,0.03,163.31,163.3,146.35901885]
[1752305301431,0.75,163.31,163.3,146.35901885]
[1752305307835,0.03,163.31,163.3,146.53901885]
[1752305308078,0.00038602,163.31,163.3,181.62656442]
[1752305308538,0.00038602,163.31,163.3,179.7035721]
[1752305308735,0.00038602,163.31,163.3,183.81185035]
[1752305308934,0.00038602,163.31,163.3,179.7035721]
[1752305309144,0.1,163.32,163.31,16.78468397]
[1752305309311,0.1,163.32,163.31,63.16185035]
[1752305309510,0.1,163.32,163.31,59.0535721]
[1752305309929,0.1,163.32,163.31,71.9935721]
[1752305310234,0.1,163.32,163.31,76.10185035]
[1752305310619,0.1,163.32,163.31,71.9935721]
[1752305311532,0.1,163.32,163.31,76.10185035]
[1752305312510,0.1,163.32,163.31,165.17185035]
[1752305312710,0.1,163.32,163.31,161.0635721]
[1752305313611,0.1,163.32,163.31,165.17185035]
[1752305313832,0.1,163.32,163.31,161.0635721]
[1752305314039,0.1,163.32,163.31,165.17185035]
[1752305314216,0.1,163.32,163.31,165.35185035]
[1752305314412,0.1,163.32,163.31,161.2435721]
[1752305314745,0.1,163.32,163.31,161.0635721]
[1752305315440,0.1,163.32,163.31,165.17185035]
[1752305315939,0.1,163.32,163.31,161.0635721]
[1752305316825,0.1,163.32,163.31,161.0935721]
[1752305317427,0.1,163.32,163.31,165.01047029]
[1752305317835,0.1,163.32,163.31,161.0935721]
[1752305318142,0.1,163.32,163.31,165.01047029]
[1752305318440,0.1,163.32,163.31,161.0935721]
[1752305318642,0.1,163.32,163.31,133.53047029]
[1752305318841,0.1,163.32,163.31,164.99047029]
[1752305319051,0.1,163.32,163.31,161.0735721]
[1752305319536,0.1,163.32,163.31,164.99047029]
[1752305319717,0.1,163.32,163.31,161.0735721]
[1752305319921,0.1,163.32,163.31,164.99047029]
[1752305320115,0.1,163.32,163.31,161.0735721]
[1752305320320,0.1,163.32,163.31,164.99047029]
[1752305320723,0.1,163.32,163.31,161.0735721]
[1752305321621,0.1,163.32,163.31,164.99047029]
[1752305321818,0.1,163.32,163.31,161.0735721]
[1752305322539,0.1,163.32,163.31,164.99047029]
[1752305322739,0.1,163.32,163.31,164.93686234]
[1752305322943,0.1,163.32,163.31,161.0735721]
[1752305323322,0.1,163.32,163.31,164.93686234]
[1752305323518,0.1,163.32,163.31,161.0735721]
[1752305323946,0.1,163.32,163.31,164.93686234]
[1752305324422,0.1,163.32,163.31,161.0735721]
[1752305324623,0.1,163.32,163.31,164.93686234]
[1752305324825,0.1,163.32,163.31,161.0735721]
[1752305325024,0.1,163.32,163.31,164.93686234]
[1752305325219,0.1,163.32,163.31,161.0735721]
[1752305325425,0.1,163.32,163.31,164.93686234]
[1752305325725,0.1,163.32,163.31,159.05605392]
[1752305325925,0.1,163.32,163.31,162.91934416]
[1752305326125,0.1,163.32,163.31,159.05605392]
[1752305326533,0.1,163.32,163.31,162.91934416]
[1752305326737,0.1,163.32,163.31,162.89934416]
[1752305327330,0.1,163.32,163.31,159.03605392]
[1752305327931,0.1,163.32,163.31,162.89934416]
[1752305328249,0.1,163.32,163.31,163.07934416]
[1752305328426,0.1,163.32,163.31,181.43934416]
[1752305328945,0.1,163.32,163.31,177.57605392]
[1752305329132,0.1,163.32,163.31,181.43934416]
[1752305330246,0.1,163.32,163.31,177.57605392]
[1752305330452,0.72,163.36,163.35,51.70901885]
[1752305330627,0.72,163.36,163.35,172.11901885]
[1752305331241,0.72,163.36,163.35,175.23340732]
[1752305336030,0.06,163.41,163.39,26.0]
[1752305336231,0.06,163.41,163.4,31.42]
[1752305336661,0.06,163.41,163.4,57.12901885]
[1752305337044,0.78,163.41,163.4,57.12901885]
[1752305339130,0.78,163.41,163.4,146.09901885]
[1752305339645,0.06,163.41,163.4,146.09901885]
[1752305340050,0.06,163.41,163.4,146.27901885]
[1752305340255,0.06,163.41,163.4,146.09901885]
[1752305340758,0.78,163.41,163.4,146.09901885]
[1752305341141,0.78,163.41,163.4,105.75468397]
[1752305341338,0.78,163.41,163.4,146.09901885]
[1752305341858,0.78,163.41,163.4,114.67901885]
[1752305342156,0.78,163.41,163.4,146.09901885]
[1752305344874,0.78,163.41,163.4,137.17468397]
[1752305345037,0.78,163.41,163.4,146.09901885]
[1752305348338,0.06,163.41,163.4,146.09901885]
[1752305353763,0.06,163.41,163.4,151.08463428]
[1752305353966,0.06,163.41,163.4,146.09901885]
[1752305354160,0.74,163.41,163.4,146.09901885]
[1752305355068,0.74,163.41,163.4,151.08317222]
[1752305355447,0.06,163.41,163.4,151.08317222]
[1752305355672,0.06,163.41,163.4,151.26317222]
[1752305363167,0.06,163.41,163.4,151.08317222]
[1752305364477,0.06,163.41,163.4,151.26317222]
[1752305364681,0.06,163.41,163.4,158.37060023]
[1752305365293,0.06,163.41,163.4,166.06772547]
[1752305370777,0.06,163.41,163.4,165.88772547]
[1752305371981,0.06,163.41,163.4,134.46772547]
[1752305372188,0.06,163.41,163.4,165.80772547]
[1752305379381,0.74,163.41,163.4,134.46772547]
[1752305379586,0.74,163.41,163.4,165.78772547]
[1752305379771,0.74,163.41,163.4,88.97]
[1752305380089,0.74,163.41,163.4,57.32]
[1752305380477,0.74,163.41,163.4,40.24433488]
[1752305381597,0.74,163.41,163.4,31.32]
[1752305384494,0.74,163.41,163.38,16.78468397]
[1752305384687,8.2932,163.4,163.39,31.32]
[1752305384989,8.9632,163.4,163.39,31.32]
[1752305391582,8.9632,163.4,163.39,40.24433488]
[1752305391777,8.9632,163.4,163.39,31.32]
[1752305391972,8.9632,163.4,163.39,40.24433488]
[1752305400410,0.06,163.41,163.39,145.99901885]
[1752305400704,0.06,163.41,163.4,51.70901885]
[1752305401388,0.73,163.41,163.4,51.70901885]
[1752305401784,0.73,163.41,163.4,83.00901885]
[1752305405790,0.73,163.41,163.4,74.08468397]
[1752305405990,0.73,163.41,163.4,83.00901885]
[1752305414425,0.73,163.41,163.4,74.08468397]
[1752305414595,0.73,163.41,163.4,83.00901885]
[1752305414796,0.73,163.41,163.4,74.08468397]
[1752305415092,0.73,163.41,163.4,83.00901885]
[1752305418613,0.73,163.41,163.4,51.70901885]
[1752305418823,0.73,163.41,163.4,82.98901885]
[1752305421510,0.73,163.41,163.4,74.06468397]
[1752305421717,0.73,163.41,163.4,82.98901885]
[1752305422715,0.73,163.41,163.38,8.92433488]
[1752305422918,0.73,163.41,163.39,48.06468397]
[1752305423219,0.73,163.41,163.4,31.28]
[1752305424025,0.73,163.41,163.38,16.78468397]
[1752305424204,0.73,163.41,163.39,31.26]
[1752305424997,9.65433488,163.41,163.39,31.26]
[1752305425197,0.72,163.4,163.39,31.26]
[1752305429525,9.64433488,163.4,163.36,26.0]
[1752305429739,0.72,163.39,163.37,31.26]
[1752305430118,9.64433488,163.39,163.37,31.26]
[1752305430318,0.72,163.38,163.37,31.26]
[1752305430720,9.64433488,163.38,163.32,8.92433488]
[1752305430923,8.92433488,163.36,163.33,31.26]
[1752305431125,8.92433488,163.36,163.34,31.26]
[1752305431126,0.72,163.35,163.34,31.26]
[1752305431513,9.64433488,163.35,163.34,31.26]
[1752305432116,9.64433488,163.35,163.31,0.03]
[1752305432309,8.92433488,163.32,163.31,0.03]
[1752305432723,9.64433488,163.32,163.3,0.06]
[1752305432926,9.64433488,163.31,163.3,0.06]
[1752305440929,0.72,163.31,163.3,0.06]
[1752305441928,9.64433488,163.31,163.3,0.06]
[1752305443512,0.72,163.31,163.3,0.06]
[1752305443720,9.64433488,163.31,163.3,0.06]
[1752305445037,0.72,163.31,163.3,0.06]
[1752305445938,0.66,163.32,163.3,0.06]
[1752305447022,0.66,163.32,163.3,8.98433488]
[1752305447926,0.06,163.35,163.31,8.92433488]
[1752305448135,0.66,163.34,163.32,40.18433488]
[1752305448347,0.66,163.33,163.32,31.26]
[1752305465957,0.66,163.33,163.3,0.06]
[1752305465958,9.58433488,163.33,163.3,0.06]
[1752305466149,9.58433488,163.32,163.3,31.3]
[1752305466344,9.58433488,163.31,163.3,31.3]
[1752305466656,0.66,163.31,163.3,31.3]
[1752305466862,0.06,163.35,163.3,31.3]
[1752305466863,8.92433488,163.33,163.3,31.3]
[1752305467051,0.66,163.31,163.3,31.3]
[1752305468246,8.92433488,163.34,163.3,31.3]
[1752305468450,0.66,163.32,163.3,40.22433488]
[1752305469361,8.98433488,163.35,163.3,40.22433488]
[1752305469665,0.66,163.31,163.3,40.22433488]
[1752305470241,0.66,163.31,163.3,31.3]
[1752305470965,8.92433488,163.34,163.3,31.3]
[1752305471267,0.66,163.32,163.3,31.3]
[1752305471641,0.66,163.34,163.31,8.92433488]
[1752305471949,0.06,163.35,163.32,40.35433488]
[1752305472149,0.72,163.35,163.32,31.22]
[1752305472353,0.66,163.34,163.32,40.14433488]
[1752305472549,0.66,163.33,163.32,31.22]
[1752305480775,9.58433488,163.33,163.3,0.06]
[1752305480955,0.06,163.35,163.3,0.06]
[1752305480956,9.60433488,163.32,163.3,0.06]
[1752305481156,0.68,163.31,163.3,0.06]
[1752305483976,9.60433488,163.31,163.3,0.06]
[1752305484879,0.68,163.31,163.3,0.06]
[1752305485065,9.60433488,163.31,163.3,0.06]
[1752305487778,0.68,163.31,163.3,0.06]
[1752305487983,9.60433488,163.31,163.3,0.06]
[1752305488392,0.68,163.31,163.3,0.06]
[1752305491062,9.60433488,163.31,163.3,0.06]
[1752305500776,0.68,163.31,163.3,0.06]
[1752305505594,26.71,163.33,163.3,0.06]
[1752305506193,0.71,163.33,163.3,8.98433488]
[1752305506396,0.77,163.34,163.31,8.92433488]
[1752305506894,0.06,163.34,163.32,8.92433488]
[1752305510185,0.06,163.34,163.33,8.92433488]
[1752305510386,0.06,163.34,163.32,9.13433488]
[1752305511374,0.06,163.34,163.33,8.92433488]
[1752305513507,0.06,163.34,163.33,9.13433488]
[1752305519696,0.06,163.34,163.32,0.21]
[1752305519909,0.06,163.34,163.33,8.92433488]
[1752305520316,9.69433488,163.34,163.3,0.06]
[1752305520620,8.92433488,163.32,163.3,0.06]
[1752305521119,0.71,163.31,163.3,0.06]
[1752305522988,9.63433488,163.31,163.3,0.06]
[1752305524011,0.71,163.31,163.3,0.06]
[1752305524898,0.06,163.34,163.3,0.06]
[1752305524899,8.92433488,163.33,163.3,0.06]
[1752305525106,0.71,163.32,163.3,0.06]
[1752305526713,0.71,163.32,163.3,31.24]
[1752305527015,0.71,163.32,163.3,40.16433488]
[1752305527216,0.06,163.34,163.3,31.45]
[1752305527386,0.06,163.34,163.33,8.92433488]
[1752305527586,0.06,163.34,163.33,40.10433488]
[1752305528487,0.06,163.34,163.33,40.31433488]
[1752305529814,0.06,163.34,163.33,40.10433488]
[1752305532603,0.06,163.34,163.33,40.31433488]
[1752305532914,0.06,163.34,163.33,31.18]
[1752305533104,0.06,163.34,163.33,40.10433488]
[1752305533918,0.06,163.34,163.33,31.18]
[1752305534221,0.06,163.34,163.33,40.10433488]
[1752305535015,0.06,163.34,163.33,31.18]
[1752305535321,0.06,163.34,163.33,40.10433488]
[1752305536126,0.75,163.34,163.33,40.10433488]
[1752305536720,0.75,163.34,163.33,31.18]
[1752305537732,0.75,163.34,163.31,8.92433488]
[1752305538017,8.92433488,163.32,163.3,0.06]
[1752305538203,0.69,163.31,163.3,0.06]
[1752305543122,9.61433488,163.31,163.3,0.06]
[1752305552736,17.50623488,163.31,163.3,0.06]
[1752305555623,8.5819,163.31,163.3,0.06]
[1752305556031,0.69,163.31,163.3,0.06]
[1752305563022,9.61433488,163.31,163.23,25.70901885]
[1752305563222,8.92433488,163.28,163.23,25.70901885]
[1752305563521,0.69,163.27,163.23,25.70901885]
[1752305563838,8.92433488,163.28,163.23,25.70901885]
[1752305564043,0.68,163.26,163.23,25.70901885]
[1752305564532,0.68,163.26,163.23,16.78468397]
[1752305564926,0.68,163.26,163.23,25.70901885]
[1752305565747,0.68,163.26,163.23,16.78468397]
[1752305565933,0.68,163.26,163.23,25.70901885]
[1752305566642,0.68,163.27,163.23,25.70901885]
[1752305566943,0.68,163.27,163.23,17.05468397]
[1752305567147,8.92433488,163.28,163.23,25.70901885]
[1752305567349,0.68,163.26,163.23,25.70901885]
[1752305569247,0.68,163.26,163.23,16.78468397]
[1752305569449,0.68,163.25,163.23,25.70901885]
[1752305569829,0.68,163.26,163.23,25.70901885]
[1752305570346,0.68,163.27,163.23,25.70901885]
[1752305570642,0.68,163.27,163.23,25.97901885]
[1752305570943,0.68,163.26,163.23,25.70901885]
[1752305572331,0.68,163.28,163.24,9.19433488]
[1752305572754,0.68,163.27,163.24,8.92433488]
[1752305576355,8.92433488,163.29,163.24,8.92433488]
[1752305576550,0.68,163.26,163.24,8.92433488]
[1752305576736,0.68,163.26,163.22,17.05468397]
[1752305576937,0.68,163.26,163.23,8.92433488]
[1752305578358,0.68,163.26,163.24,8.92433488]
[1752305578555,0.68,163.26,163.22,17.05468397]
[1752305578858,0.68,163.26,163.24,8.92433488]